bitfinex/quotes_SOLUSD_20250410
["timestamp","ask_amount","ask_price","bid_price","bid_amount"]
[1744253704522,19.05029336,116.95,116.94,0.063]
[1744253705501,18.76597022,116.95,116.94,0.063]
[1744253707429,37.69994222,116.95,116.94,0.063]
[1744253708717,1.93442314,116.94,116.92,0.063]
[1744253708901,54.86501908,116.93,116.92,0.063]
[1744253711227,70.17024222,116.93,116.92,0.0001]
[1744253711805,15.0209,116.93,116.92,0.0001]
[1744253712017,25.23627022,116.93,116.92,0.0001]
[1744253712728,1.6501,116.94,116.92,0.0001]
[1744253712729,10.2019,116.94,116.92,0.0001]
[1744253712914,10.21537022,116.93,116.92,0.0001]
[1744253714332,8.5509,116.95,116.92,0.0001]
[1744253714825,18.76627022,116.95,116.92,0.0001]
[1744253716634,8.5509,116.95,116.92,0.0001]
[1744253716837,10.21537022,116.94,116.92,0.0001]
[1744253719418,18.34387022,116.97,116.92,10.21547022]
[1744253719921,10.21537022,116.97,116.93,8.5521]
[1744253721328,18.76457022,116.97,116.93,8.5521]
[1744253721957,8.5488,116.98,116.93,8.5521]
[1744253722242,18.76417022,116.98,116.93,18.76747022]
[1744253722743,10.21537022,116.97,116.93,8.5521]
[1744253725144,8.5488,116.98,116.93,18.76747022]
[1744253725356,16.6755,117.0,116.95,10.21537022]
[1744253725644,18.79187022,117.01,116.96,10.21537022]
[1744253726139,18.79187022,117.01,116.96,18.76457022]
[1744253728830,18.79187022,117.01,116.96,68.04959024]
[1744253729030,8.5765,117.01,116.97,10.21537022]
[1744253729357,0.03,117.01,116.98,10.21537022]
[1744253730119,10.21537022,117.0,116.93,78.32462002]
[1744253730439,10.21537022,116.99,116.94,8.5513]
[1744253730631,10.21537022,116.99,116.94,18.76667022]
[1744253731439,18.76377022,116.99,116.94,18.76667022]
[1744253734724,8.5484,116.99,116.95,10.21537022]
[1744253735631,8.5472,117.0,116.96,10.21537022]
[1744253736453,18.76257022,117.0,116.94,57.83632002]
[1744253736624,18.76257022,117.0,116.95,10.21537022]
[1744253736969,10.21537022,116.98,116.94,49.28502002]
[1744253737122,18.07847022,116.99,116.94,59.50039024]
[1744253737318,10.21537022,116.97,116.94,49.28502002]
[1744253737543,10.21537022,116.98,116.93,18.76737022]
[1744253737748,10.21537022,116.96,116.92,0.0001]
[1744253737925,10.21537022,116.94,116.92,0.0001]
[1744253739148,10.21537022,116.96,116.92,0.0001]
[1744253739357,10.21537022,116.94,116.92,0.0001]
[1744253739655,8.5513,116.94,116.92,0.0001]
[1744253740726,18.76667022,116.94,116.92,0.0001]
[1744253742026,8.551,116.95,116.92,0.0001]
[1744253742226,8.5502,116.96,116.92,0.0001]
[1744253742425,18.76557022,116.96,116.92,0.0001]
[1744253743254,18.76477022,116.97,116.92,10.21547022]
[1744253743943,18.76477022,116.97,116.92,18.76787022]
[1744253747959,8.5494,116.97,116.92,18.76787022]
[1744253748154,18.76377022,116.98,116.92,18.76787022]
[1744253748760,18.76377022,116.98,116.93,10.21537022]
[1744253749255,18.76377022,116.98,116.92,8.5525]
[1744253749458,18.76377022,116.98,116.93,10.21537022]
[1744253749842,18.76377022,116.98,116.92,8.5525]
[1744253750048,18.76377022,116.98,116.93,10.21537022]
[1744253750457,18.76377022,116.98,116.92,8.5525]
[1744253750659,10.21537022,116.97,116.92,8.5525]
[1744253750858,18.76377022,116.98,116.92,8.5525]
[1744253751036,10.21537022,116.96,116.92,8.5525]
[1744253751747,10.21537022,116.97,116.92,18.76787022]
[1744253752860,18.76517022,116.97,116.92,18.76787022]
[1744253753559,18.76517022,116.97,116.92,8.5525]
[1744253754058,18.76517022,116.97,116.92,18.76787022]
[1744253755161,8.5484,116.98,116.92,18.76787022]
[1744253755366,8.5484,116.98,116.93,10.21537022]
[1744253755555,18.76377022,116.98,116.93,10.21537022]
[1744253757263,18.76377022,116.98,116.93,18.76727022]
[1744253757760,18.76377022,116.98,116.92,26.42797022]
[1744253759661,8.5484,116.98,116.92,26.42797022]
[1744253759835,18.76377022,116.98,116.93,10.21537022]
[1744253762860,18.76377022,116.98,116.93,18.76677022]
[1744253763169,18.67964886,117.01,116.95,10.21537022]
[1744253763170,0.03,117.01,116.95,10.21537022]
[1744253763339,10.24537022,117.01,116.96,10.21537022]
[1744253764247,10.24537022,117.01,116.96,8.5499]
[1744253764248,8.5474,117.0,116.96,8.5499]
[1744253765459,10.49969336,116.99,116.93,68.36719024]
[1744253766471,18.76377022,116.98,116.93,19.08217022]
[1744253768272,18.76377022,116.98,116.92,26.42787022]
[1744253769666,10.21537022,116.96,116.92,7.6601]
[1744253769970,10.21537022,116.94,116.92,0.0001]
[1744253771872,8.5521,116.93,116.92,0.0001]
[1744253773274,18.76667022,116.94,116.92,0.0001]
[1744253775473,10.21537022,116.93,116.92,0.0001]
[1744253775651,10.49969336,116.93,116.92,0.0001]
[1744253776470,0.28432314,116.93,116.92,0.0001]
[1744253777001,10.49969336,116.93,116.92,0.0001]
[1744253777467,19.05179336,116.93,116.92,0.0001]
[1744253778067,18.76697022,116.94,116.92,0.0001]
[1744253778879,8.5516,116.94,116.92,0.0001]
[1744253779175,18.76697022,116.94,116.92,0.0001]
[1744253779674,16.90342314,116.95,116.92,0.0001]
[1744253779982,18.42563179,116.95,116.92,0.0001]
[1744253780150,26.97643179,116.95,116.92,0.0001]
[1744253780346,8.69296157,116.95,116.92,0.0001]
[1744253780559,10.21537022,116.94,116.92,0.0001]
[1744253780778,18.76617022,116.95,116.92,0.0001]
[1744253781271,7.91746157,116.96,116.92,0.0001]
[1744253781272,16.46776157,116.96,116.92,0.0001]
[1744253781478,26.68313179,116.96,116.92,0.0001]
[1744253781847,7.7753,116.96,116.92,8.5529]
[1744253782047,18.90703179,116.97,116.92,18.76827022]
[1744253782252,8.69166157,116.97,116.92,18.76827022]
[1744253782465,18.76487022,116.97,116.92,18.76827022]
[1744253782675,10.21537022,116.98,116.93,10.21537022]
[1744253782880,26.53877022,116.99,116.94,10.21537022]
[1744253783080,16.3234,116.99,116.95,10.21537022]
[1744253783258,7.7753,116.99,116.95,10.21537022]
[1744253783453,18.76247022,117.0,116.95,10.21537022]
[1744253784076,18.76247022,117.0,116.96,8.5499]
[1744253787183,8.5471,117.0,116.96,10.21537022]
[1744253788065,18.79197022,117.01,116.96,10.21537022]
[1744253788664,18.79197022,117.01,116.95,57.83562002]
[1744253788872,18.79197022,117.01,116.96,10.21537022]
[1744253789070,18.79197022,117.01,116.95,57.83562002]
[1744253789071,10.21537022,117.0,116.95,68.05099024]
[1744253789394,18.76307022,116.99,116.95,57.83562002]
[1744253789958,8.5477,116.99,116.95,68.05099024]
[1744253791089,8.5477,116.99,116.95,57.83562002]
[1744253791300,10.21537022,116.99,116.95,57.83562002]
[1744253791586,10.21537022,117.0,116.95,68.05099024]
[1744253793290,8.5477,116.99,116.95,68.05099024]
[1744253793487,8.5471,117.0,116.95,68.05099024]
[1744253794078,18.79177022,117.01,116.96,10.21537022]
[1744253794487,10.21537022,117.0,116.95,68.05099024]
[1744253794684,10.21537022,116.99,116.95,49.28502002]
[1744253795392,18.76377022,116.98,116.94,7.66]
[1744253799188,18.76377022,116.98,116.94,16.2113]
[1744253799511,0.28432314,116.99,116.94,16.2113]
[1744253799671,18.76237022,117.0,116.95,10.21537022]
[1744253800474,10.21537022,116.99,116.94,75.71169024]
[1744253800667,18.76337022,116.99,116.94,65.49632002]
[1744253800887,10.21537022,116.98,116.94,56.94502002]
[1744253802810,8.5492,116.97,116.94,56.94502002]
[1744253804887,10.21537022,116.96,116.92,0.0001]
[1744253805400,26.0,116.94,116.92,0.0001]
[1744253805588,10.49969336,116.93,116.92,0.0001]
[1744253807088,19.05179336,116.93,116.92,0.0001]
[1744253809314,18.76687022,116.94,116.92,0.0001]
[1744253809509,18.933972,116.96,116.92,0.0001]
[1744253809809,10.21537022,116.94,116.92,0.0001]
[1744253810397,18.76597022,116.95,116.92,0.0001]
[1744253810593,10.21537022,116.94,116.92,0.0001]
[1744253811317,18.76737022,116.94,116.92,0.0001]
[1744253811514,10.21537022,116.93,116.92,0.0001]
[1744253811893,10.49969336,116.93,116.92,0.0001]
[1744253812690,19.05179336,116.93,116.92,0.0001]
[1744253813415,18.76707022,116.94,116.92,0.0001]
[1744253813992,10.21537022,116.93,116.92,0.0001]
[1744253814407,10.49969336,116.93,116.92,0.0001]
[1744253814702,12.10549336,116.93,116.92,0.0001]
[1744253814920,20.65759336,116.93,116.92,0.0001]
[1744253817604,8.5521,116.93,116.92,0.0001]
[1744253817802,18.76707022,116.94,116.92,0.0001]
[1744253818207,18.76637022,116.95,116.92,0.0001]
[1744253819027,10.21537022,116.95,116.92,0.0001]
[1744253819537,18.76597022,116.95,116.92,0.0001]
[1744253822328,10.21537022,116.94,116.92,0.0001]
[1744253822502,10.21537022,116.93,116.92,0.0001]
[1744253823021,10.21537022,116.94,116.92,0.0001]
[1744253823602,10.21537022,116.95,116.92,0.0001]
[1744253823915,18.76627022,116.95,116.92,0.0001]
[1744253824120,8.5509,116.95,116.92,0.0001]
[1744253824429,20.32527022,116.96,116.92,0.0001]
[1744253824926,18.76557022,116.96,116.92,0.0001]
[1744253825117,10.21537022,116.96,116.92,0.0001]
[1744253825321,25.16527022,116.97,116.92,10.21547022]
[1744253825714,8.5495,116.97,116.93,8.5521]
[1744253826325,18.76487022,116.97,116.93,8.5521]
[1744253826518,10.24537022,116.98,116.93,68.05249024]
[1744253826716,0.03,116.98,116.94,10.21537022]
[1744253827215,10.24537022,116.98,116.93,68.05249024]
[1744253828020,18.79397022,116.98,116.93,68.05249024]
[1744253829032,0.03,116.98,116.94,10.21537022]
[1744253829553,0.03,116.98,116.95,10.21537022]
[1744253830404,0.03,116.98,116.96,8.5499]
[1744253831316,0.03,116.98,116.95,18.76557022]
[1744253833835,0.03,116.98,116.96,10.21537022]
[1744253834225,0.03,116.98,116.96,59.50039024]
[1744253835831,0.03,116.98,116.96,68.04969024]
[1744253837054,0.03,116.98,116.96,57.83432002]
[1744253837353,0.03,116.98,116.96,49.28502002]
[1744253837643,0.03,116.98,116.94,26.42637022]
[1744253837949,10.24537022,116.98,116.94,16.211]
[1744253838131,0.03,116.98,116.94,26.42637022]
[1744253839052,0.03,116.98,116.94,16.211]
[1744253839421,8.5784,116.98,116.94,26.42637022]
[1744253840852,10.21537022,116.97,116.92,8.5526]
[1744253841029,10.21537022,116.97,116.92,18.76797022]
[1744253841636,11.81917022,116.98,116.93,10.21537022]
[1744253842070,10.21537022,116.97,116.92,8.5526]
[1744253842347,10.21537022,116.97,116.92,18.76797022]
[1744253842729,18.76477022,116.97,116.92,18.76797022]
[1744253846255,18.76477022,116.97,116.92,8.5526]
[1744253846454,18.76477022,116.97,116.92,18.76797022]
[1744253855356,18.76477022,116.97,116.92,8.5526]
[1744253856159,16.65517022,116.96,116.92,0.0001]
[1744253856460,10.21537022,116.94,116.92,0.0001]
[1744253856834,10.21537022,116.93,116.92,0.0001]
[1744253857090,18.23417022,116.93,116.92,0.0001]
[1744253857438,26.78627022,116.93,116.92,0.0001]
[1744253858639,27.07059336,116.93,116.92,0.0001]
[1744253867384,26.78627022,116.93,116.92,0.0001]
[1744253868588,18.23417022,116.93,116.92,0.0001]
[1744253868767,18.76697022,116.94,116.92,0.0001]
[1744253874382,18.76747022,116.93,116.92,0.0001]
[1744253874794,19.05179336,116.93,116.92,0.0001]
[1744253875082,45.77384222,116.93,116.92,0.0001]
[1744253877483,18.64964886,116.92,116.91,0.063]
[1744253877686,28.86501908,116.92,116.91,0.063]
[1744253878991,37.41781908,116.92,116.91,0.063]
[1744253880194,0.28432314,116.91,116.9,0.063]
[1744253880380,10.49969336,116.91,116.9,0.063]
[1744253880993,29.14934222,116.91,116.9,0.063]
[1744253881370,29.14934222,116.91,116.9,0.0001]
[1744253881571,35.81224222,116.91,116.9,0.0001]
[1744253882276,44.36574222,116.91,116.9,0.0001]
[1744253882980,25.71609336,116.91,116.9,0.0001]
[1744253884080,25.43177022,116.91,116.9,0.0001]
[1744253885287,44.36574222,116.91,116.9,0.0001]
[1744253901921,25.71609336,116.91,116.9,0.0001]
[1744253902231,18.76887022,116.91,116.9,0.0001]
[1744253909521,8.5535,116.91,116.9,0.0001]
[1744253909734,18.76887022,116.91,116.9,0.0001]
[1744253911916,37.70284222,116.91,116.9,0.0001]
[1744253916399,8.83782314,116.91,116.9,0.0001]
[1744253916603,19.05319336,116.91,116.9,0.0001]
[1744253924241,8.5535,116.91,116.9,0.0001]
[1744253924424,18.76887022,116.91,116.9,0.0001]
[1744253924639,8.5535,116.91,116.9,0.0001]
[1744253924929,18.76887022,116.91,116.9,0.0001]
[1744253935120,37.70284222,116.91,116.9,0.0001]
[1744253935323,0.28432314,116.89,116.85,49.34802002]
[1744253935641,10.21537022,116.88,116.85,0.063]
[1744253937146,18.77107022,116.88,116.85,0.063]
[1744253938841,8.5557,116.88,116.85,0.063]
[1744253939023,8.5554,116.89,116.85,10.27837022]
[1744253939541,18.77077022,116.89,116.85,8.6209]
[1744253939947,8.5554,116.89,116.85,18.83627022]
[1744253940628,18.77077022,116.89,116.85,57.90592002]
[1744253940842,8.5535,116.91,116.85,68.12129024]
[1744253941045,10.21537022,116.9,116.85,68.12129024]
[1744253941244,18.76887022,116.91,116.85,68.12129024]
[1744253942948,8.5535,116.91,116.86,10.21537022]
[1744253943132,18.76887022,116.91,116.86,10.21537022]
[1744253944145,18.76887022,116.91,116.87,8.6195]
[1744253944537,8.5531,116.92,116.87,8.6195]
[1744253944726,18.76847022,116.92,116.87,68.43489024]
[1744253946054,37.96975336,116.96,116.88,10.21537022]
[1744253946233,18.76597022,116.95,116.9,10.21537022]
[1744253947237,10.21537022,116.95,116.91,10.21537022]
[1744253947557,18.79567022,116.96,116.91,59.50039024]
[1744253948457,10.21537022,116.95,116.91,59.50039024]
[1744253949254,10.21537022,116.95,116.91,68.05359024]
[1744253951954,18.79557022,116.96,116.92,0.315]
[1744253952363,10.21537022,116.95,116.92,0.315]
[1744253952556,10.21537022,116.95,116.91,49.28502002]
[1744253952861,10.21537022,116.95,116.91,57.83832002]
[1744253953032,10.21537022,116.95,116.91,68.05369024]
[1744253953228,10.21537022,116.95,116.91,49.28502002]
[1744253953427,10.21537022,116.95,116.91,59.50039024]
[1744253954059,18.76667022,116.95,116.91,59.50039024]
[1744253954860,10.21537022,116.93,116.89,76.03009024]
[1744253955459,10.21537022,116.93,116.89,68.37009024]
[1744253955666,10.21537022,116.92,116.89,49.28502002]
[1744253956163,8.5531,116.92,116.89,49.28502002]
[1744253956858,18.76847022,116.92,116.89,49.28502002]
[1744253959240,10.21537022,116.91,116.89,49.28502002]
[1744253959567,10.21537022,116.91,116.87,68.11939024]
[1744253960364,18.76947022,116.91,116.87,68.11939024]
[1744253961958,10.21537022,116.92,116.87,68.11939024]
[1744253962256,10.21537022,116.92,116.88,10.21537022]
[1744253963444,18.76747022,116.93,116.88,10.21537022]
[1744253964169,18.76747022,116.93,116.89,8.555]
[1744253968547,18.76707022,116.94,116.89,18.77037022]
[1744253968747,18.76707022,116.94,116.89,68.05539024]
[1744253969576,18.76777022,116.93,116.89,57.84002002]
[1744253970076,18.76777022,116.93,116.89,49.28502002]
[1744253970272,25.02367022,116.93,116.89,49.28502002]
[1744253970464,10.21537022,116.92,116.89,49.28502002]
[1744253970780,25.02367022,116.93,116.89,49.28502002]
[1744253974846,25.02367022,116.93,116.89,57.84002002]
[1744253977189,25.02367022,116.93,116.89,49.28502002]
[1744253978179,10.21537022,116.92,116.89,49.28502002]
[1744253979979,8.5535,116.91,116.89,49.28502002]
[1744253983978,8.5528,116.92,116.89,49.28502002]
[1744253984785,8.5528,116.92,116.89,57.83992002]
[1744253984978,25.02377022,116.93,116.89,57.83992002]
[1744253988964,25.02377022,116.93,116.89,49.28502002]
[1744253991190,25.02377022,116.93,116.89,57.84002002]
[1744253991688,14.8084,116.93,116.89,57.84002002]
[1744253991890,25.02377022,116.93,116.89,57.84002002]
[1744253992995,14.8084,116.93,116.89,57.84002002]
[1744253993192,8.5517,116.94,116.89,57.84002002]
[1744253993372,18.76707022,116.94,116.89,57.84002002]
[1744253993891,10.21537022,116.93,116.89,57.84002002]
[1744253994197,18.76707022,116.94,116.89,57.84002002]
[1744253995793,18.76707022,116.94,116.89,68.05539024]
[1744253996188,18.76757022,116.93,116.89,57.84002002]
[1744253996867,18.76757022,116.93,116.89,49.28502002]
[1744253998797,8.5522,116.93,116.89,49.28502002]
[1744253998999,18.76757022,116.93,116.89,57.84002002]
[1744253999192,10.21537022,116.93,116.89,57.84002002]
[1744253999371,18.76717022,116.94,116.89,57.84002002]
[1744254000808,18.76717022,116.94,116.89,68.05539024]
[1744254001394,18.76717022,116.94,116.89,57.84002002]
[1744254001597,10.21537022,116.92,116.89,49.28502002]
[1744254002100,8.5518,116.94,116.89,57.83992002]
[1744254002287,8.5518,116.94,116.89,68.05529024]
[1744254002488,18.76717022,116.94,116.89,68.05529024]
[1744254002802,10.21537022,116.94,116.89,68.05529024]
[1744254003101,20.29377022,116.95,116.9,10.21537022]
[1744254003297,10.21537022,116.95,116.91,8.5535]
[1744254003478,25.07627022,116.96,116.91,18.76887022]
[1744254004388,0.03,116.96,116.91,89.43779024]
[1744254004591,0.03,116.96,116.93,10.21537022]
[1744254004800,0.03,116.96,116.93,59.50039024]
[1744254005299,0.03,116.96,116.93,57.83642002]
[1744254009409,0.03,116.96,116.93,68.05179024]
[1744254009612,0.03,116.96,116.95,10.21537022]
[1744254009989,0.03,116.96,116.94,28.86501908]
[1744254010689,0.03,116.96,116.95,8.5506]
[1744254011014,0.03,116.96,116.94,37.41591908]
[1744254011585,0.03,116.96,116.92,8.5526]
[1744254011586,10.24537022,116.96,116.92,8.5526]
[1744254012590,18.79547022,116.96,116.92,8.5526]
[1744254013608,10.21537022,116.95,116.92,8.5526]
[1744254014110,18.76597022,116.95,116.91,57.83832002]
[1744254014279,18.76597022,116.95,116.91,49.28502002]
[1744254014280,10.21537022,116.94,116.91,49.28502002]
[1744254016109,18.76677022,116.94,116.91,49.28502002]
[1744254018208,10.21537022,116.93,116.91,49.28502002]
[1744254018391,10.21537022,116.93,116.89,65.47992002]
[1744254018818,10.21537022,116.93,116.89,56.92502002]
[1744254019692,10.21537022,116.93,116.89,65.47982002]
[1744254020407,18.76807022,116.93,116.89,56.92502002]
[1744254022119,18.76807022,116.93,116.89,49.28502002]
[1744254023719,18.76807022,116.93,116.89,57.84002002]
[1744254024915,8.5527,116.93,116.89,49.28502002]
[1744254025806,14.8097,116.93,116.89,49.28502002]
[1744254026190,26.65517022,116.93,116.89,49.28502002]
[1744254027420,10.21537022,116.92,116.89,49.28502002]
[1744254029018,18.76927022,116.91,116.89,49.28502002]
[1744254029221,8.5539,116.91,116.89,49.28502002]
[1744254031507,18.76927022,116.91,116.87,65.54432002]
[1744254032422,8.5539,116.91,116.87,75.75969024]
[1744254034123,18.76817022,116.92,116.87,75.75969024]
[1744254035422,10.21537022,116.91,116.87,65.54432002]
[1744254035605,10.21537022,116.91,116.87,75.75969024]
[1744254035921,18.76907022,116.91,116.87,75.75969024]
[1744254038126,18.76817022,116.92,116.87,75.75969024]
[1744254040433,18.10247022,116.93,116.88,10.21537022]
[1744254040603,10.21537022,116.92,116.88,10.21537022]
[1744254041529,18.10247022,116.93,116.89,8.555]
[1744254043528,26.65457022,116.93,116.89,8.555]
[1744254044233,10.21537022,116.92,116.89,8.555]
[1744254044627,26.65457022,116.93,116.89,8.555]
[1744254045735,10.21537022,116.92,116.89,8.555]
[1744254048936,18.76817022,116.92,116.89,8.555]
[1744254049438,10.21537022,116.91,116.88,49.28502002]
[1744254049609,6.03,116.88,116.87,0.063]
[1744254049811,24.80107022,116.88,116.87,0.063]
[1744254053840,25.08539336,116.88,116.87,0.063]
[1744254054045,26.72439336,116.88,116.87,0.063]
[1744254055518,16.50902314,116.88,116.87,0.063]
[1744254055718,26.72439336,116.88,116.87,0.063]
[1744254056348,88.97527424,116.88,116.85,0.063]
[1744254056558,10.21537022,116.86,116.85,0.063]
[1744254056851,18.23677022,116.86,116.85,0.063]
[1744254057028,18.52109336,116.86,116.85,0.063]
[1744254057847,26.79397022,116.86,116.85,0.063]
[1744254058230,16.5786,116.86,116.85,0.063]
[1744254058431,26.79397022,116.86,116.85,0.063]
[1744254058840,16.5786,116.86,116.85,0.063]
[1744254059021,26.79397022,116.86,116.85,0.063]
[1744254061355,16.5786,116.86,116.85,0.063]
[1744254061723,8.0214,116.86,116.85,0.063]
[1744254062153,16.5786,116.86,116.85,0.063]
[1744254062433,18.77147022,116.88,116.85,0.063]
[1744254063354,10.21537022,116.87,116.85,0.063]
[1744254064148,18.77217022,116.87,116.85,0.063]
[1744254068963,10.21537022,116.86,116.85,0.063]
[1744254069250,18.23677022,116.86,116.85,0.063]
[1744254069458,27.07829336,116.86,116.85,0.063]
[1744254070231,18.933972,116.85,116.84,0.063]
[1744254070551,29.14934222,116.85,116.84,0.063]
[1744254070759,29.14934222,116.85,116.84,0.0001]
[1744254070940,26.28432314,116.83,116.82,0.063]
[1744254071254,44.52109336,116.83,116.82,0.063]
[1744254071644,53.08049336,116.83,116.82,0.063]
[1744254074059,16.5808,116.83,116.82,0.063]
[1744254074354,26.79617022,116.83,116.82,0.063]
[1744254074961,8.0214,116.83,116.82,0.063]
[1744254075164,18.77437022,116.84,116.82,0.063]
[1744254075455,8.559,116.84,116.82,0.063]
[1744254075666,18.77437022,116.84,116.82,0.063]
[1744254077864,18.77367022,116.85,116.82,0.063]
[1744254078166,8.5583,116.85,116.82,0.063]
[1744254078327,18.77367022,116.85,116.82,0.063]
[1744254080254,26.78477022,116.86,116.82,0.063]
[1744254080745,10.21537022,116.85,116.82,0.063]
[1744254081861,10.21537022,116.84,116.82,0.063]
[1744254082570,18.77467022,116.84,116.82,0.063]
[1744254084653,10.21537022,116.83,116.82,0.063]
[1744254086762,18.77477022,116.83,116.82,0.063]
[1744254086966,19.05909336,116.83,116.82,0.063]
[1744254090257,8.84372314,116.83,116.82,0.063]
[1744254090452,19.05909336,116.83,116.82,0.063]
[1744254091361,18.77627022,116.81,116.8,0.063]
[1744254107689,8.5609,116.81,116.8,0.063]
[1744254107979,18.77627022,116.81,116.8,0.063]
[1744254109180,19.06059336,116.81,116.8,0.063]
[1744254113690,37.71024222,116.81,116.8,0.063]
[1744254116099,19.06059336,116.81,116.8,0.063]
[1744254117373,37.71024222,116.81,116.8,0.063]
[1744254118195,19.06059336,116.81,116.8,0.063]
[1744254119817,0.28432314,116.8,116.79,0.063]
[1744254120096,37.71094222,116.8,116.79,0.063]
[1744254120309,19.06129336,116.8,116.79,0.063]
[1744254123896,8.5616,116.8,116.79,0.063]
[1744254124209,18.77697022,116.8,116.79,0.063]
[1744254125511,19.06129336,116.8,116.79,0.063]
[1744254129906,37.71094222,116.8,116.79,0.063]
[1744254130114,0.28432314,116.78,116.77,0.063]
[1744254130308,10.49969336,116.78,116.77,0.063]
[1744254130496,18.59399336,116.78,116.77,0.063]
[1744254130693,27.15709336,116.78,116.77,0.063]
[1744254132121,45.80674222,116.78,116.76,0.063]
[1744254132328,28.86501908,116.77,116.76,0.063]
[1744254132488,28.86501908,116.77,116.74,0.063]
[1744254132489,26.0,116.75,116.74,0.063]
[1744254132688,45.06499336,116.75,116.74,0.063]
[1744254133489,18.78067022,116.75,116.74,0.063]
[1744254135798,19.06499336,116.75,116.74,0.063]
[1744254142113,37.71464222,116.75,116.74,0.063]
[1744254142423,7.87942314,116.74,116.69,0.063]
[1744254142726,10.21537022,116.7,116.69,0.063]
[1744254142931,7.87942314,116.74,116.69,0.063]
[1744254143226,10.21537022,116.7,116.69,0.063]
[1744254143519,18.78437022,116.7,116.67,48.91102002]
[1744254143928,10.21537022,116.69,116.67,48.91102002]
[1744254144619,8.569,116.7,116.67,48.91102002]
[1744254144923,21.4173,116.73,116.67,48.91102002]
[1744254145124,8.5675,116.72,116.67,48.91102002]
[1744254145330,10.21537022,116.69,116.67,48.91102002]
[1744254147526,8.5691,116.7,116.67,48.91102002]
[1744254147825,10.21537022,116.69,116.67,48.91102002]
[1744254148625,8.5696,116.7,116.67,48.91102002]
[1744254148819,10.21537022,116.69,116.67,48.91102002]
[1744254149726,8.5696,116.7,116.67,48.91102002]
[1744254150028,10.21537022,116.69,116.67,48.91102002]
[1744254150924,8.5696,116.7,116.67,48.91102002]
[1744254151128,10.21537022,116.69,116.67,48.91102002]
[1744254151314,8.5696,116.7,116.67,48.91102002]
[1744254151315,10.21537022,116.68,116.67,48.91102002]
[1744254152931,8.5696,116.7,116.67,48.91102002]
[1744254153124,10.21537022,116.68,116.67,48.91102002]
[1744254153524,26.0,116.64,116.62,0.063]
[1744254153724,0.28432314,116.65,116.62,0.063]
[1744254154031,10.21537022,116.63,116.62,0.063]
[1744254155222,8.5733,116.64,116.62,0.063]
[1744254155423,10.21537022,116.63,116.62,0.063]
[1744254156426,18.78947022,116.63,116.62,0.063]
[1744254158034,8.5741,116.63,116.62,0.063]
[1744254158333,18.78907022,116.64,116.62,0.063]
[1744254159035,18.78837022,116.65,116.62,0.063]
[1744254159235,10.21537022,116.65,116.62,0.063]
[1744254159530,8.5707,116.68,116.63,10.21537022]
[1744254159743,8.5699,116.69,116.63,59.12639024]
[1744254159909,10.21537022,116.68,116.63,59.12639024]
[1744254160324,10.21537022,116.68,116.63,67.70019024]
[1744254160632,10.21537022,116.67,116.63,67.70019024]
[1744254160931,10.21537022,116.67,116.63,59.12639024]
[1744254161315,10.21537022,116.67,116.63,48.91102002]
[1744254161513,10.21537022,116.67,116.63,59.12639024]
[1744254161926,8.5699,116.69,116.63,59.12639024]
[1744254162123,10.21537022,116.67,116.63,59.12639024]
[1744254163035,10.21537022,116.66,116.63,48.91102002]
[1744254163906,10.21537022,116.65,116.63,48.91102002]
[1744254164450,18.78827022,116.65,116.63,48.91102002]
[1744254165415,10.21537022,116.64,116.63,48.91102002]
[1744254166336,10.21537022,116.64,116.62,7.903]
[1744254166541,10.21537022,116.63,116.62,7.903]
[1744254166846,10.21537022,116.63,116.62,0.063]
[1744254167645,8.5735,116.64,116.62,0.063]
[1744254167829,10.21537022,116.63,116.62,0.063]
[1744254169517,18.78947022,116.63,116.62,0.063]
[1744254170628,10.21537022,116.63,116.62,0.063]
[1744254173343,26.66897022,116.63,116.62,0.063]
[1744254176142,48.38859336,116.63,116.58,0.063]
[1744254176343,10.21537022,116.59,116.58,0.063]
[1744254176733,10.21537022,116.6,116.58,0.063]
[1744254178328,10.21537022,116.62,116.58,0.063]
[1744254179122,10.21537022,116.61,116.58,0.063]
[1744254179517,8.5745,116.63,116.58,0.063]
[1744254179740,18.79077022,116.62,116.58,0.063]
[1744254179942,10.21537022,116.61,116.58,0.063]